Cogmind - Beta 14 @@@ ROGUE MODE // 2024.11.24 @ 22:31:21 Player: MarKhan Result: Destroyed by D-53 Grenadier with Mini Grenade Launcher Performance ------------- Evolutions (0) 0 Regions Visited (2) 400 Robots Destroyed (17) 85 Value Destroyed (227) 227 Prototype IDs (0) 0 Alien Tech Used (0) 0 Bonus (0) 0 TOTAL SCORE: 712 Bonus ------- None Cogmind --------- Core Integrity 0/250 Matter 162/300 Energy 100/100 System Corruption 0% Temperature Cool (0) Movement Walking (190) Ox1 Location -10/Mines Parts ------- > --- POWER (1) -------- (None) > --- PROPULSION (2) --- Aluminum Leg Aluminum Leg > --- UTILITY (2) ------ Large Storage Unit Hardened Light Armor Plating > --- WEAPON (2) ------- Rocket Launcher > --- INVENTORY (15) --- Light Ion Engine Light Treads Compact Wheel Seismic Detector Seismic Detector Hardened Light Armor Plating Shield Generator Tractor Beam Grenade Launcher Grenade Launcher Peak State ------------ > --- POWER ------------ Ion Engine > --- PROPULSION ------- Light Treads Light Treads > --- UTILITY ---------- Large Storage Unit Hardened Light Armor Plating > --- WEAPON ----------- Assault Rifle Assault Rifle > --- INVENTORY -------- Light Ion Engine Light Treads Aluminum Leg Aluminum Leg Wheel Compact Wheel Seismic Detector Seismic Detector Hardened Light Armor Plating Hardened Light Armor Plating Shield Generator Tractor Beam Small Laser Grenade Launcher Grenade Launcher [Rating: 9] Favorites ----------- Power Ion Engine Engine Ion Engine Propulsion Light Treads Treads Light Treads Leg Aluminum Leg Wheel Compact Wheel Utility Small Storage Unit Device Seismic Detector Storage Small Storage Unit Protection Light Armor Plating Weapon Assault Rifle Energy Gun Small Laser Ballistic Gun Assault Rifle Launcher Rocket Launcher Build | -11 -10 -10 ------- Run | Yrd Mat Min Slots Evolved . | . . . Power . | . . . Propulsion . | . . . Utility . | . . . Weapon . | . . . Parts Attached 26 | 8 8 10 Power 2 | 2 . . Engine 2 | 2 . . Core . | . . . Reactor . | . . . Propulsion 7 | 2 1 4 Treads 3 | 2 1 . Leg 2 | . . 2 Wheel 2 | . . 2 Hover . | . . . Flight . | . . . Utility 9 | 2 5 2 Device 3 | 1 2 . Storage 2 | 1 1 . Processor . | . . . Hackware . | . . . Protection 4 | . 2 2 Artifact . | . . . Weapon 8 | 2 2 4 Energy Gun 2 | 1 . 1 Energy Cannon . | . . . Ballistic Gun 4 | 1 2 1 Ballistic Cannon . | . . . Launcher 2 | . . 2 Special Weapon . | . . . Impact Weapon . | . . . Slashing Weapon . | . . . Piercing Weapon . | . . . Special Melee Weapon . | . . . Unidentified Prototypes . | . . . Parts Lost 8 | . . 8 Power 1 | . . 1 Propulsion 3 | . . 3 Utility 1 | . . 1 Weapon 3 | . . 3 Highest Loss Streak 7 | . . 7 To Critical Strikes . | . . . Average Slot Usage (%) 94 | . 100 69 Engine 13 | . 14 8 Treads 25 | . 28 13 Leg 1 | . . 9 Device 6 | . 7 . Storage 14 | . 14 14 Protection 6 | . 6 7 Energy Gun 2 | . 2 2 Ballistic Gun 22 | . 25 9 Peak Build Rating 9 | 7 8 9 Average Rating 6 | 5 7 6 On Entrance 5 | . 7 8 Naked Turns . | . . . Heaviest Build 34 | 14 32 34 Greatest Support 40 | 40 40 40 Greatest Overweight (x) 1 | . . 1 Average Overweight (x) . | . . . Largest Inventory Capacity 15 | 8 15 15 Average Capacity 10 | 7 10 15 Most Carried 15 | 6 15 15 Average Carried 9 | 4 9 13 Final Capacity 15 | 8 15 15 Final Carried 15 | 6 15 10 Class Distribution -------------------- 100% | Mutant Dominant Class ---------------- Mutant | -10/Materials Mutant | -10/Mines Resources | -11 -10 -10 ----------- Run | Yrd Mat Min Matter Collected 583 | 298 233 52 Remotely . | . . . Salvage Created 555 | 136 326 93 Parts 42 | 18 16 8 Haulers Intercepted 1 | . 1 . Recyclers Shooed . | . . . Parts Field Recycled . | . . . Retrieved Matter . | . . . Parts Self-Destructed . | . . . Prevented . | . . . Kills | -11 -10 -10 ------- Run | Yrd Mat Min Combat Hostiles Destroyed 11 | . 6 5 Guns 11 | . 6 5 Classes Destroyed 8 | 3 4 1 Worker 1 | 1 . . Tunneler 3 | 3 . . Hauler 1 | . 1 . Recycler 2 | 1 1 . Watcher 1 | . 1 . Swarmer 6 | . 3 3 Grunt 3 | . 3 . Assembled 2 | . . 2 Best Kill Streak 4 | 4 3 3 Combat Bots Only 3 | . 3 3 Max Kills in Single Turn 2 | 2 1 1 Gunslinging . | . . . Exploded . | . . . Melee . | . . . Uniques/NPCs Destroyed . | . . . Combat | -11 -10 -10 -------- Run | Yrd Mat Min Hostile Shots Fired 86 | . 28 58 Missed 21 | . 8 13 Damage Taken 1255 | . 207 1048 Core 254 | . 10 244 Absorbed by Shields . | . . . Core Remaining (%) 100 | 100 . . Volleys Fired 57 | 6 26 25 Largest 2 | 2 2 2 Hottest 60 | 60 60 60 Shots Fired 104 | 12 52 40 Gun 99 | 12 52 35 Cannon . | . . . Launcher 5 | . . 5 Special . | . . . Kinetic 84 | 6 51 27 Thermal 15 | 6 1 8 Explosive 5 | . . 5 Electromagnetic . | . . . Robot Hit Streak 12 | 7 12 5 Robot Miss Streak 4 | 1 3 4 Penetration Max . | . . . Secondary Targets 2 | . . 2 Max Gunslinging Chain 1 | . . 1 Shots Hit Robots 65 | 8 39 18 Core Hits 32 | 6 15 11 Critical Kills . | . . . Critical Parts Destroyed . | . . . Critical Strikes . | . . . Melee Attacks . | . . . Impact . | . . . Slashing . | . . . Piercing . | . . . Sneak Attacks . | . . . Combat Hostiles . | . . . Follow-up Attacks . | . . . Damage Inflicted 785 | 104 469 212 Guns 744 | 104 469 171 Cannons . | . . . Explosions 38 | . . 38 Melee . | . . . Ramming 3 | . . 3 Kinetic 648 | 51 457 140 Thermal 96 | 53 12 31 Explosive 38 | . . 38 Electromagnetic . | . . . Impact . | . . . Slashing . | . . . Piercing . | . . . Highest Corruption . | . . . Average Corruption . | . . . Corruption Purged . | . . . Corruption Blocked . | . . . Overload Shots . | . . . Overflow Damage . | . . . Projectiles . | . . . Explosions . | . . . Melee . | . . . Knockbacks . | . . . Impact . | . . . Kinetic . | . . . Secondary . | . . . Self-Inflicted Damage . | . . . Shots . | . . . Rammed 2 | . . 2 Targets Rammed 2 | . . 2 Kicked . | . . . Crushed . | . . . Highest Temperature 120 | . 25 120 Average Temperature 42 | . 9 60 Received Heat Transfer 87 | . 87 . Siege Activations . | . . . Robots Corrupted . | . . . Combat Hostiles . | . . . Parts Fried . | . . . Impact Corruptions . | . . . Robots Melted . | . . . Combat Hostiles . | . . . Parts Melted . | . . . Heat Transferred 225 | 125 25 75 Parts Sabotaged . | . . . Parts Stolen . | . . . Parts Stripped . | . . . Power Chain Reactions . | . . . Alert | -11 -10 -10 ------- Run | Yrd Mat Min Peak Influence 220 | 25 220 106 Initial 36 | . 16 36 Average 71 | 7 82 68 Maximum Alert Level 1 | . 1 . Low Security (%) 92 | 100 89 100 Level 1 7 | . 10 . Level 2 . | . . . Level 3 . | . . . Level 4 . | . . . Level 5 . | . . . High Security . | . . . Max Security . | . . . Squads Dispatched 4 | . 4 . Investigation 2 | . 2 . Extermination . | . . . Reinforcement 2 | . 2 . Assault . | . . . Garrison . | . . . Intercept . | . . . Searches Triggered . | . . . Construction Impeded . | . . . Haulers Reinforced . | . . . Active Scanning Responses . | . . . Cargo Convoy Interrupts . | . . . Stealth | -11 -10 -10 --------- Run | Yrd Mat Min Distress Signals 2 | . 2 . Communications Jammed . | . . . Distress Signals . | . . . Times Spotted 35 | . 17 18 Peak Tracking Total 12 | . 4 12 Tactical Retreats 1 | . . 1 Traps | -11 -10 -10 ------- Run | Yrd Mat Min Traps Triggered 2 | . 2 . Indirectly . | . . . Trap Hack Attempts . | . . . Triggered . | . . . Disarmed . | . . . Reprogrammed . | . . . Reused . | . . . Traps Extracted . | . . . Installed . | . . . Triggered . | . . . Machines | -11 -10 -10 ---------- Run | Yrd Mat Min Machines Disabled 1 | . 1 . Max in Single Turn 1 | . 1 . Machines Repaired . | . . . Machines Dismantled . | . . . Machines Sabotaged . | . . . Overloaded Fab Kills . | . . . Hacking | -11 -10 -10 --------- Run | Yrd Mat Min Machines Accessed 3 | . 3 . Terminals 2 | . 2 . Fabricators . | . . . Repair Stations . | . . . Recycling Units 1 | . 1 . Scanalyzers . | . . . Garrison Access . | . . . Total Hacks 9 | . 9 . Successful 4 | . 4 . Failed 5 | . 5 . Catastrophic . | . . . Database Lockouts . | . . . Manual 6 | . 6 . Terminals 5 | . 5 . Fabricators . | . . . Repair Stations . | . . . Recycling Units 4 | . 4 . Scanalyzers . | . . . Garrison Access . | . . . Terminal Hacks . | . . . Fabricator Hacks . | . . . Repair Station Hacks . | . . . Recycling Unit Hacks . | . . . Scanalyzer . | . . . Garrison Access Hacks . | . . . Unauthorized Hacks 4 | . 4 . Terminals 3 | . 3 . Botnet 1 | . 1 . Skim 2 | . 2 . Fabricators . | . . . Repair Stations . | . . . Recycling Units 1 | . 1 . Tunnel 1 | . 1 . Scanalyzers . | . . . Garrison Access . | . . . Data Cores Recovered . | . . . Used . | . . . Hacking Detections 3 | . 3 . Full Trace Events . | . . . Feedback Events . | . . . Feedback Blocked . | . . . Robot Schematics Acquired . | . . . Robots Built . | . . . Authchips . | . . . Time . | . . . Total Robot Build Rating . | . . . Part Schematics Acquired . | . . . Parts Built . | . . . Authchips . | . . . Time . | . . . Total Part Build Rating . | . . . Parts Repaired . | . . . Time . | . . . Parts Recycled . | . . . Recycled Matter . | . . . Retrieved Matter . | . . . Retrieved Components . | . . . Parts Scanalyzed . | . . . Part Schematics Acquired . | . . . Parts Damaged . | . . . Bothacking | -11 -10 -10 ------------ Run | Yrd Mat Min Used RIF Installer . | . . . Robots Hacked . | . . . Non-combat . | . . . Combat . | . . . Robot Hacks Applied . | . . . Relay Couplers Released . | . . . Fabnet Peak Effective % . | . . . Robots Rewired . | . . . Allies Hacked . | . . . Hacks Repelled . | . . . Allies | -11 -10 -10 -------- Run | Yrd Mat Min Total Allies . | . . . Largest Group . | . . . Highest-Rated Group . | . . . Highest-Rated Ally . | . . . Total Orders . | . . . Ally Attacks . | . . . Total Damage . | . . . Kills . | . . . Allies Corrupted . | . . . Allies Melted . | . . . Intel | -11 -10 -10 ------- Run | Yrd Mat Min Robot Analysis Total . | . . . Derelict Logs Recovered . | . . . Drone Launches . | . . . Drone Recoveries . | . . . Exploration | -11 -10 -10 ------------- Run | Yrd Mat Min Turns Passed 1018 | 118 744 156 Spaces Moved 505 | 54 394 57 Core 3 | 3 . . Treads 457 | 51 394 12 Legs 26 | . . 26 Wheels 19 | . . 19 Hover . | . . . Flight . | . . . Fastest Speed 50 | 50 160 90 Average Speed 155 | 153 160 129 Slowest Speed 240 | 160 160 240 Overloaded Moves . | . . . Propulsion Burnouts . | . . . Robots Hopped . | . . . Cave-ins Triggered . | . . . Exploration Rate (%) 25 | 5 48 22 Regions Visited 2 Branch Regions 1 Pre-discovered Areas 1 | . 1 . Known Exits Taken . | . . . Unknown Exits Taken 2 | 1 1 . Scrap Searched . | . . . Spaces Dug . | . . . Terrain Destroyed 40 | . . 40 Melee . | . . . Projectile . | . . . AOE 40 | . . 40 Terrain Rammed . | . . . Walls Destroyed . | . . . Machines Disabled . | . . . Actions | -11 -10 -10 --------- Run | Yrd Mat Min Total 622 | 73 454 95 Wait 15 | . 15 . Move 503 | 53 393 57 Hop . | . . . Pick Up 17 | 6 10 1 Fast Attach 9 | 7 2 . Attach 6 | . . 6 Detach . | . . . Swap 11 | 1 6 4 Drop 2 | . 2 . Fire 57 | 6 26 25 Melee . | . . . Ram . | . . . Kick . | . . . Crush 2 | . . 2 Escape Stasis . | . . . Rewire . | . . . Trap . | . . . Miscellaneous . | . . . Route ------- -11/Scrapyard -10/Materials -10/Mines History --------- Turn | Location | Event 54 | -11/Scrapyard | Discovered new exit (range 15) 119 | -11/Scrapyard | Entered Materials 312 | -10/Materials | Build established: Mutant 381 | -10/Materials | Discovered new exit (range 16) 863 | -10/Materials | Entered Mines 864 | -10/Mines | Assembled infested the area 917 | -10/Mines | Met a Derelict bent on vengeance 948 | -10/Mines | Received a Rocket Launcher from a helpful Derelict 981 | -10/Mines | Lost 7 parts (1p3n1u2w) 996 | -10/Mines | Core integrity fell below 50% 1011 | -10/Mines | Core integrity fell below 20% 1019 | -10/Mines | Destroyed by D-53 Grenadier with Mini Grenade Launcher Last Messages --------------- 00946_ The unstable cave ceiling collapses. 00946_ Lgt. Treads destroyed. 00946_ Hrd. Light Armor Plating destroyed. 00947_ EK-7GC(g): "Need a small hole in the wall? Leave that to the mining laser wimps, I say!" 00948_ EK-7GC(g): "Would you like a rocket launcher? I know I would if I were you, so I'm going to lend you mine." 00948_ EK-7GC(g) slips back into the shadows. 00948_ Wheel destroyed. 00950_ The unstable cave ceiling collapses. 00950_ Ion Engine destroyed. 00951_ The unstable cave ceiling collapses. 00951_ D-53 Grenadier destroyed. 00952_ The unstable cave ceiling collapses. 00953_ Acquired Rocket Launcher. 00954_ The unstable cave ceiling collapses. 01006_ Assault Rifle destroyed. 01012_ The unstable cave ceiling collapses. Map ----- +----------------------------------------------------+ | ?????????????????????????????????????? | | ?????????????????????????????????????? | | ?????????????????????????????????????? | | ?????????????????????????????????????? | | ?????????????????????????????????????? | | ?????????????????????????????????????? | | ?????????????????????????????????????? | | ?????????????????????????????????????? | | ?????????????????????????????????????? | | ?????????????????????????????????????? | | ?????????????????????????????????????? | | ?????????????????????????????????????? | | ?????????????????????????????????????? | | ?????????????????????????????????????? | | ?????????????????????????????????????? | | ???????????????????????????????????? | | ???????????????????####????????????? | | ??????????????????## ##???????????? | | ??????????????????# #???????????? | | ??????????####?#### #???????????? | | ##???????? ####????????? | | ???????? # ##???????? | | ?????????# ##??????? | | ????????### #??????? | | ???????# d #??????? | | $ ###???# @ #??????? | | ## ###?# #??????? | | ### # #??????? | | # ### ####????? | | # # ### ### ##???? | | ##?#### #???? | | # ##????## ##???? | | # ### ##????## ##????? | | # #?#####?????# ##?????? | | # ??????????# ####??????? | | #### ?????????# ##?????????? | | #?? ##????????# ##??????????? | | # ##???#?????????###???????????? | | #???????????????????????????? | | # # #???????????????????????????? | | # ##???????????????????????????? | | ##????????????????????????????? | | ########?????????????????????????????? | | ?????????????????????????????????????? | | ?????????????????????????????????????? | | ?????????????????????????????????????? | | ?????????????????????????????????????? | | ?????????????????????????????????????? | | | | | +----------------------------------------------------+ Best States ------------- Heat Dissipation 25 Energy Generation 10 Energy Capacity 250 Matter Stores 300 Matter Capacity 300 Sight Range 16 Terrain Scan Density 10 Armor Coverage 150 Evasion (%) 55 Recoil Reduction 2 Item Schematics ----------------- None Robot Schematics ------------------ None Fabricated ------------ Nothing Alien Tech Used ----------------- None Achievements -------------- None Challenges ------------ None Game ------ Seed CombatRingDeflector Manual? 0 Play Time 00:11:31 Cumulative 130.6 hours Start 2024.11.24 @ 20:42:16 End 2024.11.24 @ 22:31:21 Sessions 2 Manual Loads 0 Difficulty Rogue Special Mode None Game No. 117 Rogue 117 Adventurer 0 Explorer 0 Win Type - Total 3 Types 3/0/0/0/0/0/0/0/0 Lore% 53 Gallery% 56 Achievement% 48 Wizard Run 0 Options --------- Layout 1 ASCII 0 Keyboard 1 Movement Arrows Keybinds 0 Fullscreen 0 Font 20/SmallcapsGlow Map View 50x35 Zoom Use 0% Tactical HUD 1 Map Filters NONE Filters NONE Steam 1 RUN: c7cd4583-af2d-4da7-bbf0-a042e96ac377